bitfinex/quotes_BTCUSD_20241128
["timestamp","ask_amount","ask_price","bid_price","bid_amount"]
[1732756867411,0.0011846,96276.0,96275.0,0.0008583]
[1732756867640,0.0021846,96276.0,96275.0,0.0018583]
[1732756867874,0.0011846,96276.0,96275.0,0.0008583]
[1732756868342,0.0021846,96276.0,96275.0,0.1057273]
[1732756868554,0.0011846,96276.0,96275.0,0.1047273]
[1732756868785,0.0011846,96276.0,96275.0,0.0008583]
[1732756868991,0.0021846,96276.0,96275.0,0.0078583]
[1732756869410,0.0011846,96276.0,96275.0,0.0008583]
[1732756869850,0.0011846,96276.0,96275.0,0.0038583]
[1732756870073,0.0011846,96276.0,96275.0,0.0048583]
[1732756870299,0.0011846,96276.0,96275.0,0.0008583]
[1732756870731,0.1060526,96276.0,96275.0,0.0058583]
[1732756871409,0.1817526,96276.0,96275.0,0.0058583]
[1732756872098,0.28583953,96276.0,96275.0,0.0018583]
[1732756872311,0.28583953,96276.0,96275.0,0.0048583]
[1732756872312,0.28459781,96276.0,96275.0,0.0048583]
[1732756872997,0.28459781,96276.0,96275.0,0.0018583]
[1732756873213,0.28359781,96276.0,96275.0,0.0008583]
[1732756873677,0.28459781,96276.0,96275.0,0.0018583]
[1732756873902,0.28359781,96276.0,96275.0,0.0008583]
[1732756874111,0.28759781,96276.0,96275.0,0.0008583]
[1732756874533,0.28459781,96276.0,96275.0,0.0008583]
[1732756874948,0.1877526,96276.0,96275.0,0.0008583]
[1732756875193,0.0021846,96276.0,96275.0,0.0008583]
[1732756875448,0.0011846,96276.0,96275.0,0.0008583]
[1732756875650,0.0011846,96276.0,96275.0,0.1047273]
[1732756875908,0.0031846,96276.0,96275.0,0.1047273]
[1732756876338,0.0011846,96276.0,96275.0,0.1047273]
[1732756876834,0.0041846,96276.0,96275.0,0.1067273]
[1732756877064,0.0011846,96276.0,96275.0,0.1067273]
[1732756877273,0.0011846,96276.0,96275.0,0.1047273]
[1732756877483,0.0021846,96276.0,96275.0,0.1057273]
[1732756877690,0.0011846,96276.0,96275.0,0.1047273]
[1732756877904,0.0011846,96276.0,96275.0,0.0008583]
[1732756878114,0.0021846,96276.0,96275.0,0.0018583]
[1732756878337,0.0011846,96276.0,96275.0,0.0008583]
[1732756878791,0.0011846,96276.0,96275.0,0.1087273]
[1732756879249,0.0011846,96276.0,96275.0,0.10896076]
[1732756879489,0.0011846,96276.0,96275.0,0.00509176]
[1732756879771,0.0011846,96276.0,96275.0,0.00109176]
[1732756879980,0.0021846,96276.0,96275.0,0.00709176]
[1732756880196,0.0011846,96276.0,96275.0,0.00609176]
[1732756880408,0.0011846,96276.0,96275.0,0.10996076]
[1732756880624,0.0021846,96276.0,96275.0,0.11096076]
[1732756882066,0.207716,96286.0,96275.0,0.00709176]
[1732756882317,0.103864,96280.0,96275.0,0.00709176]
[1732756882563,0.184568,96276.0,96275.0,0.00709176]
[1732756882996,0.00124172,96279.0,96275.0,0.00209176]
[1732756883216,0.207709,96289.0,96275.0,0.00209176]
[1732756883217,0.103857,96287.0,96275.0,0.00209176]
[1732756883471,0.103857,96286.0,96278.0,0.103864]
[1732756883692,0.103865,96278.0,96275.0,0.00309176]
[1732756883902,0.103868,96276.0,96275.0,0.00409176]
[1732756884112,0.207726,96281.0,96275.0,0.00409176]
[1732756884113,0.207726,96281.0,96275.0,0.00309176]
[1732756884354,0.103865,96279.0,96275.0,0.00409176]
[1732756884826,0.103865,96279.0,96275.0,0.00309176]
[1732756885267,0.103868,96276.0,96275.0,0.00409176]
[1732756885495,0.184568,96276.0,96275.0,0.00409176]
[1732756885954,0.184568,96276.0,96275.0,0.00209176]
[1732756886448,0.184568,96276.0,96275.0,0.00609176]
[1732756886687,0.184568,96276.0,96275.0,0.00509176]
[1732756886920,0.184568,96276.0,96275.0,0.00109176]
[1732756887142,0.184568,96276.0,96275.0,0.00609176]
[1732756887354,0.184568,96276.0,96275.0,0.00809176]
[1732756887833,0.184568,96276.0,96275.0,0.00609176]
[1732756888079,0.185568,96276.0,96275.0,0.00809176]
[1732756889574,0.185568,96276.0,96275.0,0.00309176]
[1732756890029,0.184568,96276.0,96275.0,0.00309176]
[1732756890243,0.184568,96276.0,96275.0,0.00509176]
[1732756893233,0.103868,96276.0,96275.0,0.00509176]
[1732756893481,0.0017166,96279.0,96278.0,0.103865]
[1732756893696,0.0017166,96279.0,96275.0,0.00509176]
[1732756894401,0.103868,96276.0,96275.0,0.00509176]
[1732756894621,0.103868,96276.0,96275.0,0.00309176]
[1732756895066,0.00124172,96277.0,96275.0,0.00309176]
[1732756895711,0.10510872,96277.0,96275.0,0.00109176]
[1732756896149,0.103868,96276.0,96275.0,0.00109176]
[1732756896825,0.103868,96276.0,96275.0,0.00309176]
[1732756897050,0.00124172,96277.0,96275.0,0.00309176]
[1732756897276,0.103867,96277.0,96275.0,0.00309176]
[1732756897495,0.00124172,96276.0,96275.0,0.00509176]
[1732756898392,0.00295832,96279.0,96275.0,0.00509176]
[1732756898638,0.00295832,96279.0,96275.0,0.00309176]
[1732756898862,0.0017166,96279.0,96278.0,0.103865]
[1732756899108,0.0017166,96279.0,96278.0,0.25409846]
[1732756899328,0.0017166,96279.0,96278.0,0.45002064]
[1732756899570,0.0017166,96279.0,96278.0,0.88677516]
[1732756899783,0.0017166,96279.0,96278.0,0.70050908]
[1732756900021,0.0017166,96279.0,96278.0,0.93313066]
[1732756900251,0.0017166,96279.0,96278.0,0.93409309]
[1732756900696,0.0027166,96279.0,96278.0,0.93509309]
[1732756900921,0.0027166,96279.0,96278.0,0.70250908]
[1732756901146,0.0017166,96279.0,96278.0,0.44766386]
[1732756901378,0.0027166,96279.0,96278.0,0.24566881]
[1732756901601,0.0027166,96279.0,96278.0,0.10609845]
[1732756902279,0.0027166,96279.0,96278.0,0.00223345]
[1732756902525,0.0027166,96279.0,96278.0,0.09527028]
[1732756902971,0.0037166,96279.0,96278.0,0.10127028]
[1732756903193,0.0027166,96279.0,96278.0,0.09927028]
[1732756903413,0.0017166,96279.0,96278.0,0.19713528]
[1732756903640,0.0027166,96279.0,96278.0,0.20213528]
[1732756903902,0.0017166,96279.0,96278.0,0.20213528]
[1732756904187,0.0017166,96279.0,96278.0,0.09827028]
[1732756904413,0.0027166,96279.0,96278.0,0.10327028]
[1732756904628,0.0017166,96279.0,96278.0,0.19713528]
[1732756904853,0.0027166,96279.0,96278.0,0.09827028]
[1732756905101,0.0027166,96279.0,96278.0,0.00523345]
[1732756905760,0.1055806,96279.0,96278.0,0.00023345]
[1732756905984,0.0017166,96279.0,96278.0,0.00023345]
[1732756906670,0.0017166,96279.0,96278.0,0.00523345]
[1732756907367,0.0017166,96279.0,96278.0,0.00823345]
[1732756907368,0.0027166,96279.0,96278.0,0.00823345]
[1732756907596,0.0027166,96279.0,96278.0,0.00323345]
[1732756907833,0.0017166,96279.0,96278.0,0.00023345]
[1732756908073,0.0017166,96279.0,96278.0,0.00323345]
[1732756908580,0.1055806,96279.0,96278.0,0.00323345]
[1732756909085,0.1055806,96279.0,96278.0,0.00623345]
[1732756909536,0.1055806,96279.0,96278.0,0.00323345]
[1732756910241,0.1055806,96279.0,96278.0,0.00023345]
[1732756910737,0.1065806,96279.0,96278.0,0.00023345]
[1732756910977,0.1055806,96279.0,96278.0,0.00023345]
[1732756911410,0.0027166,96279.0,96278.0,0.00023345]
[1732756911914,0.0027166,96279.0,96278.0,0.10409845]
[1732756912391,0.0027166,96279.0,96278.0,0.00023345]
[1732756913976,0.0017166,96279.0,96278.0,0.00323345]
[1732756914462,0.1065806,96279.0,96278.0,0.00323345]
[1732756914691,0.0017166,96279.0,96278.0,0.00323345]
[1732756914933,0.0017166,96279.0,96278.0,0.00623345]
[1732756915160,0.0017166,96279.0,96278.0,0.00323345]
[1732756915422,0.1055806,96279.0,96278.0,0.00323345]
[1732756915691,0.1055806,96279.0,96278.0,0.00423345]
[1732756915910,0.1055806,96279.0,96278.0,0.00123345]
[1732756916376,0.1055806,96279.0,96278.0,0.00223345]
[1732756917291,0.1055806,96279.0,96278.0,0.00023345]
[1732756917519,0.1055806,96279.0,96278.0,0.00323345]
[1732756918224,0.1822806,96279.0,96278.0,0.00523345]
[1732756918444,0.1822806,96279.0,96278.0,0.00323345]
[1732756918891,0.1832806,96279.0,96278.0,0.00323345]
[1732756919103,0.1822806,96279.0,96278.0,0.00023345]
[1732756919576,0.1822806,96279.0,96278.0,0.00223345]
[1732756920002,0.1822806,96279.0,96278.0,0.00023345]
[1732756920224,0.1822806,96279.0,96278.0,0.00123345]
[1732756920659,0.1822806,96279.0,96278.0,0.00223345]
[1732756920878,0.1822806,96279.0,96278.0,0.00123345]
[1732756921355,0.1822806,96279.0,96278.0,0.00223345]
[1732756921575,0.19561357,96279.0,96278.0,0.00223345]
[1732756921840,0.19561357,96279.0,96260.0,0.34733703]
[1732756921841,0.29947857,96279.0,96262.0,0.09304535]
[1732756922076,0.00124172,96278.0,96264.0,0.10388]
[1732756922302,0.103875,96269.0,96262.0,0.09304535]
[1732756922528,0.207746,96272.0,96257.0,0.18609071]
[1732756922529,0.207761,96265.0,96257.0,0.09304535]
[1732756922748,0.207764,96263.0,96252.0,0.09304535]
[1732756922987,0.103885,96260.0,96252.0,0.103893]
[1732756923222,0.103889,96256.0,96251.0,0.0008589]
[1732756923449,0.103888,96257.0,96251.0,0.0008589]
[1732756923697,0.20777,96260.0,96251.0,0.0008589]
[1732756923698,0.103885,96260.0,96251.0,0.0008589]
[1732756923919,0.00124172,96260.0,96251.0,0.0008589]
[1732756924134,0.0797,96261.0,96251.0,0.0008589]
[1732756924135,0.103893,96253.0,96251.0,0.0008589]
[1732756924379,0.0797,96261.0,96251.0,0.0008589]
[1732756924700,0.10389,96255.0,96251.0,0.0008589]
[1732756924781,0.311658,96259.0,96251.0,0.0008589]
[1732756925002,0.103891,96255.0,96251.0,0.0008589]
[1732756925252,0.207772,96259.0,96251.0,0.0028589]
[1732756925482,0.103893,96252.0,96251.0,0.0008589]
[1732756925721,0.103892,96254.0,96251.0,0.0028589]
[1732756925989,0.103892,96254.0,96251.0,0.0038589]
[1732756926225,0.103893,96253.0,96251.0,0.0018589]
[1732756926699,0.103893,96253.0,96251.0,0.0028589]
[1732756926932,0.20901872,96257.0,96251.0,0.0028589]
[1732756926933,0.207779,96256.0,96251.0,0.0028589]
[1732756927177,0.103893,96252.0,96251.0,0.0028589]
[1732756927424,0.207781,96255.0,96251.0,0.0028589]
[1732756927662,0.103893,96252.0,96251.0,0.0018589]
[1732756927898,0.103892,96254.0,96251.0,0.0008589]
[1732756928138,0.103892,96254.0,96251.0,0.0028589]
[1732756928370,0.103893,96252.0,96251.0,0.0028589]
[1732756929092,0.103893,96252.0,96251.0,0.0038589]
[1732756929580,0.20797993,96252.0,96251.0,0.0008589]
[1732756930095,0.20797993,96252.0,96251.0,0.0018589]
[1732756930355,0.20797993,96252.0,96251.0,0.0008589]
[1732756930862,0.22141842,96252.0,96251.0,0.0018589]
[1732756931141,0.20673821,96252.0,96251.0,0.0038589]
[1732756931334,0.20797993,96252.0,96251.0,0.0018589]
[1732756931802,0.21197993,96252.0,96251.0,0.0018589]
[1732756932041,0.21073821,96252.0,96251.0,0.0018589]
[1732756932516,0.207778,96257.0,96251.0,0.0018589]
[1732756932752,0.004,96252.0,96251.0,0.0008589]
[1732756932980,0.006,96252.0,96251.0,0.0008589]
[1732756933719,0.004,96252.0,96251.0,0.0008589]
[1732756934180,0.106889,96257.0,96251.0,0.0008589]
[1732756934181,0.003,96257.0,96251.0,0.0008589]
[1732756934417,0.106888,96257.0,96251.0,0.0008589]
[1732756934648,0.003,96252.0,96251.0,0.0008589]
[1732756934872,0.003,96257.0,96252.0,0.103893]
[1732756935132,0.003,96257.0,96251.0,0.0008589]
[1732756935133,0.003,96257.0,96251.0,0.0028589]
[1732756935362,0.103888,96257.0,96251.0,0.0008589]
[1732756935604,0.103888,96257.0,96251.0,0.1057529]
[1732756935870,0.001,96257.0,96256.0,0.103889]
[1732756936102,0.001,96257.0,96256.0,0.230689]
[1732756936337,0.001,96257.0,96252.0,0.207787]
[1732756936577,0.001,96257.0,96251.0,0.0008589]
[1732756936813,0.001,96257.0,96251.0,0.1047529]
[1732756937053,0.103889,96256.0,96251.0,0.0008589]
[1732756937299,0.104888,96257.0,96256.0,0.004]
[1732756937596,0.103886,96259.0,96256.0,0.004]
[1732756937837,0.001,96257.0,96256.0,0.007]
[1732756938065,0.207769,96261.0,96256.0,0.004]
[1732756938288,0.103887,96259.0,96256.0,0.004]
[1732756938765,0.05710836,96331.0,96256.0,0.004]
[1732756938766,0.0802,96273.0,96256.0,0.004]
[1732756938993,0.001,96257.0,96256.0,0.004]
[1732756939225,0.001,96257.0,96256.0,0.103889]
[1732756939452,0.001,96257.0,96251.0,0.00189442]
[1732756939453,0.103878,96267.0,96251.0,0.0008589]
[1732756939677,0.103878,96267.0,96260.0,0.103885]
[1732756939917,0.0802,96273.0,96251.0,0.22196111]
[1732756940167,0.00124172,96272.0,96260.0,0.103885]
[1732756940396,0.207749,96270.0,96260.0,0.103885]
[1732756940627,0.0802,96273.0,96259.0,0.20777]
[1732756940855,0.103876,96269.0,96261.0,0.103883]
[1732756941097,0.0802,96273.0,96251.0,0.2086469]
[1732756941098,0.0802,96273.0,96251.0,0.0008589]
[1732756941334,0.103876,96269.0,96261.0,0.103883]
[1732756941795,0.103877,96268.0,96261.0,0.103883]
[1732756942026,0.103878,96267.0,96259.0,0.103885]
[1732756942266,0.207749,96270.0,96262.0,0.103882]
[1732756942267,0.003,96269.0,96262.0,0.103882]
[1732756942548,0.003,96269.0,96259.0,0.207772]
[1732756942819,0.106875,96269.0,96260.0,0.20777]
[1732756943051,0.103876,96268.0,96259.0,0.207772]
[1732756943287,0.103876,96268.0,96261.0,0.103883]
[1732756943524,0.003,96269.0,96251.0,0.0008589]
[1732756943525,0.003,96269.0,96268.0,0.103876]
[1732756944011,0.004,96269.0,96268.0,0.22972121]
[1732756944484,0.0017164,96282.0,96277.0,0.103866]
[1732756944961,0.0017164,96282.0,96277.0,0.180266]
[1732756946130,0.0017164,96282.0,96277.0,0.330266]
[1732756947315,0.0027168,96278.0,96277.0,0.333266]
[1732756948019,0.0027168,96278.0,96277.0,0.338266]
[1732756948683,0.0027168,96278.0,96277.0,0.261866]
[1732756948922,0.0027168,96278.0,96277.0,0.111866]
[1732756949418,0.0027168,96278.0,96277.0,0.11273947]
[1732756949890,0.0027168,96278.0,96277.0,0.10773947]
[1732756950134,0.0027168,96278.0,96277.0,0.11273947]
[1732756950363,0.0017168,96278.0,96277.0,0.10973947]
[1732756950642,0.0027168,96278.0,96277.0,0.10773947]
[1732756950896,0.0027168,96278.0,96277.0,0.10870411]
[1732756951127,0.0017168,96278.0,96277.0,0.10870411]
[1732756951347,0.0017168,96278.0,96277.0,0.11170411]
[1732756951348,0.0027168,96278.0,96277.0,0.11170411]
[1732756951572,0.0017168,96278.0,96277.0,0.10570411]
[1732756952037,0.0027168,96278.0,96277.0,0.10870411]
[1732756952294,0.0027168,96278.0,96277.0,0.23454932]
[1732756952531,0.0027168,96278.0,96277.0,0.38271121]
[1732756953494,0.0027168,96278.0,96277.0,0.284866]
[1732756953734,0.0027168,96278.0,96277.0,0.261866]
[1732756960249,0.0027168,96278.0,96277.0,0.256866]
[1732756960736,0.0017168,96278.0,96277.0,0.256866]
[1732756960961,0.0027168,96278.0,96277.0,0.259866]
[1732756961197,0.0027168,96278.0,96277.0,0.256866]
[1732756961426,0.0017168,96278.0,96277.0,0.253866]
[1732756961654,0.0017168,96278.0,96277.0,0.257866]
[1732756962119,0.0027168,96278.0,96277.0,0.256866]
[1732756962365,0.0027168,96278.0,96273.0,0.22082712]
[1732756962366,0.0017168,96278.0,96276.0,0.103867]
[1732756962618,0.0017168,96278.0,96274.0,0.15]
[1732756962880,0.0017168,96278.0,96259.0,0.13944577]
[1732756962881,0.1065818,96278.0,96277.0,0.003]
[1732756963366,0.0027168,96278.0,96277.0,0.003]
[1732756963599,0.0027168,96278.0,96277.0,0.007]
[1732756964050,0.1065818,96278.0,96277.0,0.007]
[1732756964301,0.1065818,96278.0,96277.0,0.004]
[1732756964302,0.1055818,96278.0,96277.0,0.004]
[1732756964553,0.1055818,96278.0,96274.0,0.003]
[1732756964554,0.0027168,96278.0,96274.0,0.003]
[1732756964780,0.103868,96276.0,96269.0,0.103875]
[1732756965973,0.103868,96276.0,96270.0,0.103874]
[1732756966667,0.103868,96276.0,96268.0,0.103876]
[1732756966909,0.103868,96276.0,96269.0,0.103875]
[1732756967142,0.103868,96276.0,96269.0,0.103874]
[1732756967630,0.0017168,96278.0,96265.0,0.207759]
[1732756967631,0.207734,96277.0,96265.0,0.207759]
[1732756967850,0.103869,96275.0,96270.0,0.001]
[1732756968079,0.2094488,96278.0,96270.0,0.001]
[1732756968305,0.2094488,96278.0,96269.0,0.001]
[1732756968525,0.0017168,96278.0,96269.0,0.001]
[1732756968758,0.0017168,96278.0,96270.0,0.103874]
[1732756968984,0.103868,96276.0,96269.0,0.001]
[1732756969215,0.0017168,96278.0,96270.0,0.103874]
[1732756969216,0.103867,96277.0,96270.0,0.103874]
[1732756969450,0.0017168,96278.0,96270.0,0.103874]
[1732756969451,0.103868,96276.0,96270.0,0.103874]
[1732756970162,0.0017168,96278.0,96269.0,0.001]
[1732756970403,0.103874,96270.0,96269.0,0.001]
[1732756970630,0.0477168,96278.0,96261.0,0.207766]
[1732756970631,0.103872,96272.0,96265.0,0.103879]
[1732756971285,0.103872,96272.0,96270.0,0.001]
[1732756971525,0.10387,96274.0,96270.0,0.001]
[1732756971753,0.103872,96272.0,96265.0,0.103878]
[1732756971989,0.103872,96272.0,96256.0,0.0008584]
[1732756971990,0.0762,96277.0,96264.0,0.207761]
[1732756971991,0.07744172,96277.0,96264.0,0.207761]
[1732756972253,0.0477168,96278.0,96276.0,0.103867]
[1732756972254,0.0017168,96278.0,96276.0,0.103867]
[1732756973430,0.0017168,96278.0,96277.0,0.103866]
[1732756973654,0.0017168,96278.0,96277.0,0.10552008]
[1732756974581,0.0017168,96278.0,96277.0,0.10852008]
[1732756975263,0.0017168,96278.0,96277.0,0.10752008]
[1732756975485,0.0027168,96278.0,96277.0,0.108866]
[1732756975966,0.0027168,96278.0,96277.0,0.005]
[1732756976478,0.0017168,96278.0,96277.0,0.002]
[1732756976698,0.0017168,96278.0,96277.0,0.103866]
[1732756976914,0.0017168,96278.0,96276.0,0.103868]
[1732756977147,0.0017168,96278.0,96277.0,0.004]
[1732756977609,0.0017168,96278.0,96271.0,0.207746]
[1732756977610,0.0017168,96278.0,96271.0,0.103873]
[1732756977826,0.0027168,96278.0,96277.0,0.006]
[1732756978055,0.0017168,96278.0,96277.0,0.003]
[1732756978289,0.0017168,96278.0,96276.0,0.103867]
[1732756978560,0.0017168,96278.0,96273.0,0.207742]
[1732756978561,0.0017168,96278.0,96277.0,0.002]
[1732756978783,0.0017168,96278.0,96277.0,0.001]
[1732756979002,0.0017168,96278.0,96277.0,0.002]
[1732756979443,0.0017168,96278.0,96277.0,0.001]
[1732756980121,0.0017168,96278.0,96276.0,0.001]
[1732756980593,0.0017168,96278.0,96276.0,0.002]
[1732756981047,0.0017168,96278.0,96265.0,0.15]
[1732756981048,0.00295852,96278.0,96265.0,0.15]
[1732756981327,0.00295852,96278.0,96263.0,0.09390177]
[1732756981328,0.207736,96276.0,96263.0,0.1508584]
[1732756981554,0.207736,96276.0,96266.0,0.15]
[1732756981555,0.103873,96272.0,96266.0,0.15]
[1732756981785,0.207736,96276.0,96268.0,0.103876]
[1732756982012,0.0762,96277.0,96276.0,0.001]
[1732756982254,0.0017168,96278.0,96277.0,0.103866]
[1732756984544,0.0017168,96278.0,96277.0,0.104866]
[1732756985022,0.0017168,96278.0,96277.0,0.103866]
[1732756985258,0.00119577,96282.0,96277.0,0.105866]
[1732756985483,0.207725,96281.0,96277.0,0.002]
[1732756985714,0.00119577,96282.0,96279.0,0.103864]
[1732756985934,0.00119577,96282.0,96277.0,0.004]
[1732756986173,0.00119577,96282.0,96281.0,0.103862]
[1732756986633,0.00119577,96282.0,96277.0,0.002]
[1732756986859,0.00119577,96282.0,96273.0,0.09319544]
[1732756986860,0.10505777,96282.0,96274.0,0.10387]
[1732756987084,0.10505777,96282.0,96274.0,0.20774]
[1732756987085,0.00119577,96282.0,96274.0,0.20774]
[1732756987327,0.00119577,96282.0,96272.0,0.09319544]
[1732756987328,0.00119577,96282.0,96275.0,0.207738]
[1732756987608,0.00119577,96282.0,96271.0,0.207746]
[1732756987609,0.10505777,96282.0,96273.0,0.09319544]
[1732756987857,0.00119577,96282.0,96276.0,0.103867]
[1732756988086,0.00119577,96282.0,96271.0,0.30094144]
[1732756988087,0.00119577,96282.0,96277.0,0.103866]
[1732756988558,0.00119577,96282.0,96272.0,0.09319544]
[1732756989237,0.103862,96281.0,96274.0,0.103869]
[1732756989700,0.00119577,96282.0,96272.0,0.09319544]
[1732756989701,0.00119577,96282.0,96272.0,0.30093844]
[1732756990191,0.00119577,96282.0,96277.0,0.103866]
[1732756990434,0.207725,96281.0,96273.0,0.09319544]
[1732756990598,0.103865,96279.0,96273.0,0.09319544]
[1732756990828,0.103865,96279.0,96272.0,0.19706644]
[1732756990994,0.00119577,96282.0,96272.0,0.19706644]
[1732756990995,0.00119577,96282.0,96272.0,0.09419544]
[1732756991214,0.00119577,96282.0,96277.0,0.103866]
[1732756991597,0.00119577,96282.0,96277.0,0.001]
[1732756992044,0.00119577,96282.0,96277.0,0.103866]
[1732756992560,0.00119577,96282.0,96277.0,0.09319544]
[1732756992816,0.103864,96280.0,96277.0,0.09319544]
[1732756993281,0.103864,96279.0,96277.0,0.09319544]
[1732756993516,0.20891977,96282.0,96277.0,0.09319544]
[1732756993517,0.18420672,96278.0,96277.0,0.001]
[1732756993766,0.18420672,96278.0,96272.0,0.001]
[1732756993767,0.103871,96273.0,96272.0,0.001]
[1732756993985,0.10388,96264.0,96262.0,0.0008584]
[1732756994233,0.15332172,96264.0,96262.0,0.0008584]
[1732756995672,0.1452995,96264.0,96262.0,0.0008584]
[1732756996559,0.24814471,96264.0,96262.0,0.0008584]
[1732756996776,0.3395955,96264.0,96263.0,0.0018584]
[1732756997441,0.3395955,96264.0,96263.0,0.0028584]
[1732756997887,0.3395955,96264.0,96263.0,0.0018584]
[1732756998124,0.3395955,96264.0,96263.0,0.0008584]
[1732756998351,0.3425955,96264.0,96263.0,0.0008584]
[1732756998794,0.3395955,96264.0,96263.0,0.0008584]
[1732756999542,0.3465955,96264.0,96263.0,0.0008584]
[1732756999768,0.3415955,96264.0,96263.0,0.0008584]
[1732757000224,0.3465955,96264.0,96263.0,0.0008584]
[1732757000931,0.3395955,96264.0,96263.0,0.0008584]
[1732757001195,0.18855029,96264.0,96263.0,0.0008584]
[1732757001431,0.20079201,96264.0,96263.0,0.0008584]
[1732757001867,0.19879201,96264.0,96263.0,0.0008584]
[1732757002302,0.30563722,96264.0,96263.0,0.0008584]
[1732757002511,0.3540955,96264.0,96263.0,0.0008584]
[1732757002728,0.3500955,96264.0,96263.0,0.0008584]
[1732757003433,0.3590955,96264.0,96263.0,0.0008584]
[1732757003868,0.3410955,96264.0,96263.0,0.0008584]
[1732757004112,0.3490955,96264.0,96263.0,0.0008584]
[1732757004371,0.3520955,96264.0,96263.0,0.0008584]
[1732757004818,0.3490955,96264.0,96263.0,0.0008584]
[1732757005041,0.3530955,96264.0,96263.0,0.0008584]
[1732757010329,0.3630955,96264.0,96263.0,0.0008584]
[1732757010807,0.3648123,96264.0,96263.0,0.0008584]
[1732757013158,0.5248123,96264.0,96263.0,0.0008584]
[1732757015683,0.5248123,96264.0,96263.0,4e-07]
[1732757015956,0.5248123,96264.0,96235.0,0.0008589]
[1732757015957,0.01,96252.0,96235.0,0.0008589]
[1732757016214,0.103925,96223.0,96222.0,6e-05]
[1732757016472,0.20827021,96223.0,96222.0,6e-05]
[1732757016663,0.20951193,96223.0,96222.0,6e-05]
[1732757017607,0.00124172,96223.0,96222.0,6e-05]
[1732757017840,0.01318995,96223.0,96222.0,6e-05]
[1732757018065,0.00124172,96229.0,96222.0,6e-05]
[1732757018066,0.103921,96227.0,96222.0,6e-05]
[1732757018299,0.10408693,96226.0,96222.0,6e-05]
[1732757019211,0.103925,96223.0,96222.0,6e-05]
[1732757019423,0.22101193,96223.0,96222.0,6e-05]
[1732757019652,0.21977021,96223.0,96222.0,6e-05]
[1732757019909,0.21077021,96223.0,96222.0,6e-05]
[1732757020115,0.21201193,96223.0,96222.0,6e-05]
[1732757020539,0.25781193,96223.0,96222.0,6e-05]
[1732757020760,0.25257021,96223.0,96222.0,6e-05]
[1732757020967,0.26157021,96223.0,96222.0,6e-05]
[1732757021918,0.26657021,96223.0,96222.0,6e-05]
[1732757022150,0.34627021,96223.0,96222.0,6e-05]
[1732757022402,0.34127021,96223.0,96222.0,6e-05]
[1732757022620,0.33227021,96223.0,96222.0,0.0009184]
[1732757023078,0.34027021,96223.0,96222.0,0.0009184]
[1732757023730,0.33227021,96223.0,96222.0,0.0009184]
[1732757023950,0.33727021,96223.0,96222.0,0.0009184]
[1732757024163,0.34627021,96223.0,96222.0,0.0009184]
[1732757024369,0.34127021,96223.0,96222.0,0.0009184]
[1732757024816,0.34627021,96223.0,96222.0,0.0009184]
[1732757025311,0.34127021,96223.0,96222.0,0.0009184]
[1732757025760,0.36658833,96223.0,96222.0,0.0009184]
[1732757026476,0.35758833,96223.0,96222.0,0.0009184]
[1732757026709,0.51658833,96223.0,96222.0,0.0009184]
[1732757026913,0.50258833,96223.0,96222.0,0.0009184]
[1732757027378,0.36658833,96223.0,96222.0,0.0009184]
[1732757027643,0.51658833,96223.0,96222.0,0.0009184]
[1732757027854,0.51158833,96223.0,96222.0,0.0009184]
[1732757028065,0.50258833,96223.0,96222.0,0.0009184]
[1732757028709,0.21177021,96223.0,96222.0,0.0009184]
[1732757028917,0.21301193,96223.0,96222.0,0.0009184]
[1732757029126,0.21301193,96223.0,96222.0,0.0011184]
[1732757030047,0.21701193,96223.0,96222.0,0.0011184]
[1732757030291,0.21577021,96223.0,96222.0,0.0011184]
[1732757030497,0.21177021,96223.0,96222.0,0.0011184]
[1732757030720,0.21301193,96223.0,96222.0,0.0011184]
[1732757031160,0.22101193,96223.0,96222.0,0.0011184]
[1732757031370,0.21977021,96223.0,96222.0,0.0011184]
[1732757037499,0.20677021,96223.0,96222.0,0.0011184]
[1732757037723,0.22101193,96223.0,96222.0,0.0011184]
[1732757037966,0.005,96223.0,96222.0,0.0011184]
[1732757038520,0.011,96223.0,96222.0,0.0011184]
[1732757038745,0.006,96223.0,96222.0,0.0011184]
[1732757038966,0.109925,96223.0,96222.0,0.0011184]
[1732757039225,0.21277021,96223.0,96222.0,0.0011184]
[1732757039476,0.21401193,96223.0,96222.0,0.0011184]
[1732757039940,0.11008693,96223.0,96222.0,0.0011184]
[1732757040168,0.21401193,96223.0,96222.0,0.0011184]
[1732757040404,0.006,96223.0,96222.0,0.0011184]
[1732757040664,0.00124172,96227.0,96222.0,0.0011184]
[1732757040884,0.003,96223.0,96222.0,0.0021184]
[1732757041326,0.103924,96224.0,96222.0,0.0011184]
[1732757041545,0.00124172,96226.0,96222.0,0.0011184]
[1732757041781,0.10392,96228.0,96222.0,0.0031184]
[1732757042026,0.00124172,96227.0,96222.0,0.0031184]
[1732757042255,0.103922,96226.0,96222.0,0.0031184]
[1732757042492,0.207842,96227.0,96222.0,0.0011184]
[1732757042727,0.103921,96227.0,96222.0,0.0011184]
[1732757042951,0.001,96224.0,96222.0,0.0011184]
[1732757043424,0.103925,96223.0,96222.0,0.0011184]
[1732757044779,0.103925,96223.0,96222.0,0.0021184]
[1732757045457,0.103925,96223.0,96222.0,0.0031184]
[1732757047504,0.20801193,96223.0,96222.0,0.0031184]
[1732757047733,0.28851193,96223.0,96222.0,0.0031184]
[1732757047943,0.28727021,96223.0,96222.0,0.0031184]
[1732757049128,0.31960606,96223.0,96222.0,0.0031184]
[1732757050528,0.31960606,96223.0,96222.0,0.0021184]
[1732757050951,0.32460606,96223.0,96222.0,0.0011184]
[1732757051410,0.32760606,96223.0,96222.0,0.0011184]
[1732757051843,0.32460606,96223.0,96222.0,0.0011184]
[1732757052270,0.32660606,96223.0,96222.0,0.0011184]
[1732757057024,0.49660606,96223.0,96222.0,0.0011184]
[1732757057279,0.58959909,96223.0,96222.0,0.0011184]
[1732757057514,0.63867934,96223.0,96222.0,0.0011184]
[1732757057754,0.54560606,96223.0,96222.0,0.0011184]
[1732757058222,0.54060606,96223.0,96222.0,0.0011184]
[1732757058693,0.53960606,96223.0,96222.0,0.0011184]
[1732757058925,0.52860606,96223.0,96222.0,0.0011184]
[1732757059163,0.54560606,96223.0,96222.0,0.0021184]
[1732757059374,0.62867934,96223.0,96222.0,0.0021184]
[1732757060306,0.37560606,96223.0,96222.0,0.0021184]
[1732757060984,0.37760606,96223.0,96222.0,0.0011184]
[1732757061223,0.36860606,96223.0,96222.0,0.0011184]